[Event "*** Titled Tuesday 3|2 Blitz"]
[Site "Chess.com"]
[Date "2017.03.07"]
[Round "2"]
[White "cheese111"]
[Black "David_Klein"]
[Result "0-1"]
[WhiteElo "2266"]
[BlackElo "2434"]
[TimeControl "180+2"]
[EndTime "13:21:48 PST"]
[Termination "David_Klein won on time"]

1. e4 {[%clk 0:03:02]} 1... c5 {[%clk 0:02:54.6]} 2. Nf3 {[%clk 0:02:57.6]} 2...
e6 {[%clk 0:02:55.1]} 3. g3 {[%clk 0:02:56]} 3... Nc6 {[%clk 0:02:53.9]} 4. Bg2
{[%clk 0:02:56.5]} 4... Nf6 {[%clk 0:02:55.1]} 5. Qe2 {[%clk 0:02:56.8]} 5... d5
{[%clk 0:02:53.2]} 6. exd5 {[%clk 0:02:50.2]} 6... Nxd5 {[%clk 0:02:53.8]} 7.
O-O {[%clk 0:02:51.5]} 7... Be7 {[%clk 0:02:55.3]} 8. Rd1 {[%clk 0:02:51.3]}
8... Qb6 {[%clk 0:02:56]} 9. Na3 {[%clk 0:02:42.8]} 9... Bf6 {[%clk 0:02:48.3]}
10. Nc4 {[%clk 0:02:37.9]} 10... Qc7 {[%clk 0:02:48.3]} 11. d4 {[%clk
0:02:34.2]} 11... cxd4 {[%clk 0:02:46.3]} 12. c3 {[%clk 0:02:29]} 12... O-O
{[%clk 0:02:33.8]} 13. cxd4 {[%clk 0:02:29.5]} 13... b6 {[%clk 0:02:27.3]} 14.
Bg5 {[%clk 0:02:29.4]} 14... Bb7 {[%clk 0:02:27.5]} 15. Rac1 {[%clk 0:02:26.2]}
15... Qe7 {[%clk 0:02:16.1]} 16. Bxf6 {[%clk 0:02:24.9]} 16... Nxf6 {[%clk
0:02:18]} 17. Nfe5 {[%clk 0:02:09.1]} 17... Nb4 {[%clk 0:02:15.3]} 18. Bxb7
{[%clk 0:01:50.2]} 18... Qxb7 {[%clk 0:02:17.2]} 19. a3 {[%clk 0:01:35.7]} 19...
Nbd5 {[%clk 0:02:16.6]} 20. Rc2 {[%clk 0:01:31.9]} 20... Rad8 {[%clk 0:02:13.8]}
21. Rdc1 {[%clk 0:01:31.8]} 21... h6 {[%clk 0:02:14.3]} 22. Nd2 {[%clk
0:01:17.9]} 22... a6 {[%clk 0:01:55.4]} 23. Ne4 {[%clk 0:00:54.1]} 23... Nxe4
{[%clk 0:01:36.1]} 24. Qxe4 {[%clk 0:00:56]} 24... Rc8 {[%clk 0:01:31.8]} 25.
Nc6 {[%clk 0:00:21.2]} 25... Rc7 {[%clk 0:01:21.5]} 26. Nb4 {[%clk 0:00:14.7]}
26... Nxb4 {[%clk 0:01:20.3]} 27. Qxb7 {[%clk 0:00:12.7]} 27... Rxb7 {[%clk
0:01:22.2]} 28. axb4 {[%clk 0:00:13.5]} 28... Rd8 {[%clk 0:01:23.3]} 29. Rc8
{[%clk 0:00:13.9]} 29... Rd7 {[%clk 0:01:23.8]} 30. Rxd8+ {[%clk 0:00:13.7]}
30... Rxd8 {[%clk 0:01:25.7]} 31. Rc6 {[%clk 0:00:14.5]} 31... b5 {[%clk
0:01:26.6]} 32. Rxa6 {[%clk 0:00:11.4]} 32... Rxd4 {[%clk 0:01:27.3]} 33. Ra8+
{[%clk 0:00:10.2]} 33... Kh7 {[%clk 0:01:28.1]} 34. Ra7 {[%clk 0:00:09.7]} 34...
Kg6 {[%clk 0:01:28.6]} 35. Rc7 {[%clk 0:00:10.5]} 35... Rxb4 {[%clk 0:01:25.9]}
36. Rc2 {[%clk 0:00:11.9]} 36... Kf5 {[%clk 0:01:26.5]} 37. f3 {[%clk
0:00:12.6]} 37... g5 {[%clk 0:01:27.1]} 38. Kf2 {[%clk 0:00:13.7]} 38... h5
{[%clk 0:01:27.9]} 39. Ke3 {[%clk 0:00:13.1]} 39... Rb3+ {[%clk 0:01:28]} 40.
Kf2 {[%clk 0:00:14]} 40... g4 {[%clk 0:01:29.2]} 41. Rc5+ {[%clk 0:00:14.2]}
41... e5 {[%clk 0:01:29.6]} 42. fxg4+ {[%clk 0:00:11.5]} 42... hxg4 {[%clk
0:01:31.5]} 43. Rc2 {[%clk 0:00:11.8]} 43... Ke4 {[%clk 0:01:30.6]} 44. Ke2
{[%clk 0:00:12.1]} 44... f5 {[%clk 0:01:31.6]} 45. Kd2 {[%clk 0:00:09.5]} 45...
f4 {[%clk 0:01:30.9]} 46. Ke2 {[%clk 0:00:09.8]} 46... f3+ {[%clk 0:01:30.9]}
47. Kf2 {[%clk 0:00:09.5]} 47... Kd3 {[%clk 0:01:32.2]} 48. Rc5 {[%clk
0:00:03.3]} 48... Rxb2+ {[%clk 0:01:33.2]} 49. Kf1 {[%clk 0:00:04.5]} 49... e4
{[%clk 0:01:33.5]} 0-1

[Event "*** Titled Tuesday 3|2 Blitz"]
[Site "Chess.com"]
[Date "2017.03.07"]
[Round "2"]
[White "Gergo85"]
[Black "Rating-Schmating"]
[Result "1-0"]
[WhiteElo "2435"]
[BlackElo "2287"]
[TimeControl "180+2"]
[EndTime "13:21:49 PST"]
[Termination "Gergo85 won by resignation"]

1. e4 {[%clk 0:03:02]} 1... e6 {[%clk 0:03:00.6]} 2. d4 {[%clk 0:03:02.6]} 2...
d5 {[%clk 0:03:01.2]} 3. Nd2 {[%clk 0:03:04]} 3... a6 {[%clk 0:02:59.6]} 4. Ngf3
{[%clk 0:03:02.8]} 4... Nf6 {[%clk 0:02:59.6]} 5. e5 {[%clk 0:03:02]} 5... Nfd7
{[%clk 0:03:00.5]} 6. c3 {[%clk 0:03:02.7]} 6... c5 {[%clk 0:03:01.7]} 7. Bd3
{[%clk 0:03:03.3]} 7... Nc6 {[%clk 0:03:02.9]} 8. O-O {[%clk 0:03:04.3]} 8... g5
{[%clk 0:03:03.6]} 9. dxc5 {[%clk 0:02:45.9]} 9... Ndxe5 {[%clk 0:03:00.5]} 10.
Nxe5 {[%clk 0:02:30.2]} 10... Nxe5 {[%clk 0:02:59.7]} 11. Nb3 {[%clk 0:02:30.9]}
11... Nxd3 {[%clk 0:03:00.5]} 12. Qxd3 {[%clk 0:02:32.8]} 12... Bd7 {[%clk
0:02:55.7]} 13. Re1 {[%clk 0:02:30.4]} 13... Bb5 {[%clk 0:02:51.8]} 14. Qg3
{[%clk 0:02:28.6]} 14... h6 {[%clk 0:02:43.6]} 15. Be3 {[%clk 0:02:26.3]} 15...
Bg7 {[%clk 0:02:42.2]} 16. Bd4 {[%clk 0:02:16.8]} 16... O-O {[%clk 0:02:38.3]}
17. Bxg7 {[%clk 0:02:15.1]} 17... Kxg7 {[%clk 0:02:39.6]} 18. Nd4 {[%clk
0:02:16.7]} 18... Qf6 {[%clk 0:02:30]} 19. b4 {[%clk 0:02:04]} 19... Rfe8 {[%clk
0:02:25.7]} 20. a4 {[%clk 0:02:04]} 20... e5 {[%clk 0:02:19.1]} 21. Nf3 {[%clk
0:01:51.2]} 21... e4 {[%clk 0:02:06.5]} 22. Nxg5 {[%clk 0:01:08.8]} 22... Qxg5
{[%clk 0:01:58.1]} 23. axb5 {[%clk 0:01:08.6]} 23... axb5 {[%clk 0:01:52.9]} 24.
Rad1 {[%clk 0:00:57.6]} 24... Ra3 {[%clk 0:01:41.7]} 25. Re3 {[%clk 0:00:39.3]}
25... f5 {[%clk 0:01:27.7]} 26. h4 {[%clk 0:00:27.3]} 26... Qxg3 {[%clk
0:01:28.4]} 27. Rxg3+ {[%clk 0:00:29]} 27... Kf6 {[%clk 0:01:27.7]} 28. Rxd5
{[%clk 0:00:28.4]} 28... f4 {[%clk 0:01:27.4]} 29. Rg4 {[%clk 0:00:26.4]} 29...
Rxc3 {[%clk 0:01:19.7]} 30. Rxf4+ {[%clk 0:00:26.3]} 30... Ke6 {[%clk 0:01:21]}
31. Rd4 {[%clk 0:00:24.3]} 31... Rc1+ {[%clk 0:01:06.8]} 32. Kh2 {[%clk
0:00:24.7]} 32... Re1 {[%clk 0:01:07.2]} 33. Rfxe4+ {[%clk 0:00:25.1]} 33... Kf5
{[%clk 0:01:07.6]} 34. Rxe8 {[%clk 0:00:22.2]} 34... Rxe8 {[%clk 0:01:07.2]} 35.
f3 {[%clk 0:00:21.1]} 35... Re7 {[%clk 0:01:04.5]} 36. g4+ {[%clk 0:00:21.9]}
36... Kg6 {[%clk 0:01:04.2]} 37. Kg3 {[%clk 0:00:23.1]} 37... Re6 {[%clk
0:01:01.6]} 38. Rd6 {[%clk 0:00:23.8]} 38... Kf6 {[%clk 0:00:55]} 39. g5+ {[%clk
0:00:22.7]} 39... Kf5 {[%clk 0:00:50.5]} 40. Rxe6 {[%clk 0:00:22.8]} 40... Kxe6
{[%clk 0:00:51.2]} 41. gxh6 {[%clk 0:00:24.5]} 41... Kf6 {[%clk 0:00:52.8]} 42.
Kf4 {[%clk 0:00:23.8]} 42... Kg6 {[%clk 0:00:54.1]} 43. Ke5 {[%clk 0:00:25]}
43... Kxh6 {[%clk 0:00:55.3]} 44. Ke6 {[%clk 0:00:26]} 44... Kh5 {[%clk
0:00:57.2]} 45. f4 {[%clk 0:00:27.2]} 45... Kxh4 {[%clk 0:00:59.1]} 46. f5
{[%clk 0:00:28.9]} 46... Kg4 {[%clk 0:00:58.7]} 47. f6 {[%clk 0:00:30.8]} 47...
Kf4 {[%clk 0:01:00.3]} 48. f7 {[%clk 0:00:32.2]} 48... Ke4 {[%clk 0:01:02.2]}
49. f8=Q {[%clk 0:00:33.6]} 49... Kd4 {[%clk 0:01:04.1]} 50. Qf4+ {[%clk
0:00:34.5]} 50... Kc3 {[%clk 0:01:05.3]} 51. Kd5 {[%clk 0:00:35.5]} 1-0

[Event "*** Titled Tuesday 3|2 Blitz"]
[Site "Chess.com"]
[Date "2017.03.07"]
[Round "2"]
[White "Tash_Boy"]
[Black "eldur16"]
[Result "0-1"]
[WhiteElo "2515"]
[BlackElo "2312"]
[TimeControl "180+2"]
[EndTime "13:21:49 PST"]
[Termination "eldur16 won by resignation"]

1. e4 {[%clk 0:03:02]} 1... g6 {[%clk 0:03:00.8]} 2. d4 {[%clk 0:03:01.3]} 2...
Bg7 {[%clk 0:03:01.9]} 3. Nc3 {[%clk 0:03:02.1]} 3... d6 {[%clk 0:03:03.1]} 4.
g3 {[%clk 0:03:01.2]} 4... Nf6 {[%clk 0:03:01.7]} 5. Bg2 {[%clk 0:03:01.9]} 5...
O-O {[%clk 0:03:02.7]} 6. Nge2 {[%clk 0:03:01.6]} 6... e5 {[%clk 0:03:03.7]} 7.
O-O {[%clk 0:03:02.6]} 7... Nc6 {[%clk 0:03:02.1]} 8. h3 {[%clk 0:02:53.9]} 8...
exd4 {[%clk 0:02:57.2]} 9. Nxd4 {[%clk 0:02:53.2]} 9... Bd7 {[%clk 0:02:57.9]}
10. Be3 {[%clk 0:02:53.1]} 10... Re8 {[%clk 0:02:58.5]} 11. Re1 {[%clk
0:02:53.2]} 11... a6 {[%clk 0:02:58.8]} 12. a4 {[%clk 0:02:50.1]} 12... Nxd4
{[%clk 0:02:58.8]} 13. Bxd4 {[%clk 0:02:50.1]} 13... c5 {[%clk 0:02:59.9]} 14.
Be3 {[%clk 0:02:51.1]} 14... Bc6 {[%clk 0:03:00.9]} 15. Bf4 {[%clk 0:02:51.9]}
15... Re6 {[%clk 0:02:56.7]} 16. Qd2 {[%clk 0:02:37.6]} 16... b5 {[%clk
0:02:53.3]} 17. axb5 {[%clk 0:02:33.3]} 17... axb5 {[%clk 0:02:54.3]} 18. Rad1
{[%clk 0:02:16.5]} 18... b4 {[%clk 0:02:54.5]} 19. Nd5 {[%clk 0:02:17.5]} 19...
Bxd5 {[%clk 0:02:51]} 20. exd5 {[%clk 0:02:18.6]} 20... Rxe1+ {[%clk 0:02:51.6]}
21. Rxe1 {[%clk 0:02:20.3]} 21... Qb6 {[%clk 0:02:44.3]} 22. Bf3 {[%clk
0:02:14.3]} 22... Nd7 {[%clk 0:02:43.6]} 23. Re7 {[%clk 0:02:10.4]} 23... Ne5
{[%clk 0:02:34.8]} 24. Bxe5 {[%clk 0:02:10.4]} 24... Bxe5 {[%clk 0:02:35.2]} 25.
Bg4 {[%clk 0:02:09.7]} 25... Rf8 {[%clk 0:02:16.6]} 26. Be6 {[%clk 0:01:51.6]}
26... Qd8 {[%clk 0:02:13.4]} 27. Rd7 {[%clk 0:01:48.4]} 27... Qf6 {[%clk
0:02:13.7]} 28. Qh6 {[%clk 0:01:37.9]} 28... Bd4 {[%clk 0:02:04]} 29. Qf4 {[%clk
0:00:54.6]} 29... fxe6 {[%clk 0:01:58.9]} 30. c3 {[%clk 0:00:45.7]} 30... Be5
{[%clk 0:01:41.9]} 31. Qxf6 {[%clk 0:00:43.9]} 31... Bxf6 {[%clk 0:01:35.8]} 32.
dxe6 {[%clk 0:00:43.3]} 32... bxc3 {[%clk 0:01:35.6]} 33. bxc3 {[%clk
0:00:41.3]} 33... Bxc3 {[%clk 0:01:36.2]} 34. Rxd6 {[%clk 0:00:39.4]} 34... Bd4
{[%clk 0:01:37]} 35. Rd7 {[%clk 0:00:38.6]} 35... Bxf2+ {[%clk 0:01:35.3]} 36.
Kg2 {[%clk 0:00:39]} 36... Bd4 {[%clk 0:01:35.7]} 37. h4 {[%clk 0:00:40.3]}
37... Re8 {[%clk 0:01:34.2]} 38. Rd6 {[%clk 0:00:37.8]} 38... Kg7 {[%clk
0:01:30.9]} 39. g4 {[%clk 0:00:37.7]} 39... Kf6 {[%clk 0:01:31.4]} 40. g5+
{[%clk 0:00:38.7]} 40... Ke5 {[%clk 0:01:30.2]} 41. Rd7 {[%clk 0:00:40]} 41...
Rxe6 {[%clk 0:01:27.8]} 42. Rxh7 {[%clk 0:00:41.5]} 42... c4 {[%clk 0:01:28.4]}
43. Kf3 {[%clk 0:00:37.6]} 43... c3 {[%clk 0:01:26.9]} 44. Ke2 {[%clk
0:00:38.6]} 44... Kd5+ {[%clk 0:01:26.9]} 45. Kd3 {[%clk 0:00:39.1]} 45... Re3+
{[%clk 0:01:27.8]} 46. Kc2 {[%clk 0:00:40.1]} 46... Re2+ {[%clk 0:01:28.8]} 47.
Kd1 {[%clk 0:00:39.7]} 47... c2+ {[%clk 0:01:28.3]} 48. Kxe2 {[%clk 0:00:39.8]}
48... c1=Q {[%clk 0:01:28.4]} 49. Rd7+ {[%clk 0:00:39.9]} 49... Ke5 {[%clk
0:01:27.9]} 50. Re7+ {[%clk 0:00:38.9]} 50... Kf5 {[%clk 0:01:28.5]} 51. Rf7+
{[%clk 0:00:37.2]} 51... Ke4 {[%clk 0:01:29.1]} 52. Re7+ {[%clk 0:00:37.4]}
52... Be5 {[%clk 0:01:30]} 0-1

[Event "*** Titled Tuesday 3|2 Blitz"]
[Site "Chess.com"]
[Date "2017.03.07"]
[Round "2"]
[White "Keranke"]
[Black "x-3738459472"]
[Result "1-0"]
[WhiteElo "2727"]
[BlackElo "2486"]
[TimeControl "180+2"]
[EndTime "13:21:54 PST"]
[Termination "Keranke won by resignation"]

1. d4 {[%clk 0:03:02]} 1... d5 {[%clk 0:02:59.7]} 2. Bf4 {[%clk 0:03:02.1]} 2...
Nf6 {[%clk 0:02:57.1]} 3. e3 {[%clk 0:03:03.2]} 3... c5 {[%clk 0:02:55.1]} 4.
Nc3 {[%clk 0:03:04.5]} 4... a6 {[%clk 0:02:53.5]} 5. Nf3 {[%clk 0:03:05.6]} 5...
Nc6 {[%clk 0:02:53]} 6. dxc5 {[%clk 0:03:03.9]} 6... e6 {[%clk 0:02:51.4]} 7.
Na4 {[%clk 0:03:04.9]} 7... Nh5 {[%clk 0:02:39.6]} 8. Bg5 {[%clk 0:02:53.1]}
8... Nf6 {[%clk 0:02:36.3]} 9. c3 {[%clk 0:02:49.1]} 9... Be7 {[%clk 0:02:27.2]}
10. Bd3 {[%clk 0:02:43.6]} 10... O-O {[%clk 0:02:25.1]} 11. O-O {[%clk
0:02:40.2]} 11... e5 {[%clk 0:02:24.2]} 12. Be2 {[%clk 0:02:34.8]} 12... Be6
{[%clk 0:02:19.3]} 13. b4 {[%clk 0:02:28.7]} 13... Ne4 {[%clk 0:02:16.3]} 14.
Bxe7 {[%clk 0:02:29.9]} 14... Qxe7 {[%clk 0:02:18.1]} 15. Nd2 {[%clk 0:02:27.9]}
15... Nf6 {[%clk 0:02:14.6]} 16. a3 {[%clk 0:02:21.1]} 16... Rad8 {[%clk
0:02:15.2]} 17. Qc2 {[%clk 0:02:04]} 17... h6 {[%clk 0:01:57.8]} 18. Rad1 {[%clk
0:02:02.7]} 18... Rfe8 {[%clk 0:01:43.9]} 19. Rfe1 {[%clk 0:02:03.9]} 19... Bg4
{[%clk 0:01:41.2]} 20. Bxg4 {[%clk 0:01:56.8]} 20... Nxg4 {[%clk 0:01:43.1]} 21.
h3 {[%clk 0:01:51.9]} 21... Nf6 {[%clk 0:01:42.9]} 22. Nf3 {[%clk 0:01:47.6]}
22... e4 {[%clk 0:01:43.5]} 23. Nd4 {[%clk 0:01:48]} 23... Ne5 {[%clk 0:01:45]}
24. Nb6 {[%clk 0:01:49.1]} 24... Nd3 {[%clk 0:01:41.5]} 25. Re2 {[%clk
0:01:46.6]} 25... Qe5 {[%clk 0:01:38.7]} 26. Nb3 {[%clk 0:01:37.1]} 26... Nd7
{[%clk 0:01:36.4]} 27. Nxd7 {[%clk 0:01:36.1]} 27... Rxd7 {[%clk 0:01:37.4]} 28.
Nc1 {[%clk 0:01:37.7]} 28... Nxc1 {[%clk 0:01:29.5]} 29. Qxc1 {[%clk 0:01:39.6]}
29... Rc8 {[%clk 0:01:29.3]} 30. Red2 {[%clk 0:01:34.5]} 30... Rcd8 {[%clk
0:01:22.2]} 31. Rd4 {[%clk 0:01:33.6]} 31... Qe6 {[%clk 0:01:14.4]} 32. Qd2
{[%clk 0:01:33]} 32... Qc6 {[%clk 0:01:10.9]} 33. c4 {[%clk 0:01:32.3]} 33...
Qa4 {[%clk 0:01:08.6]} 34. cxd5 {[%clk 0:01:21.5]} 34... Qxa3 {[%clk 0:01:09.7]}
35. d6 {[%clk 0:01:15]} 35... a5 {[%clk 0:01:09.3]} 36. Rxe4 {[%clk 0:01:13.3]}
36... b6 {[%clk 0:00:57.4]} 37. Qd3 {[%clk 0:00:39.2]} 37... axb4 {[%clk
0:00:40.8]} 38. Qxa3 {[%clk 0:00:37]} 38... bxa3 {[%clk 0:00:41.8]} 39. c6
{[%clk 0:00:38.1]} 39... Rxd6 {[%clk 0:00:43]} 40. Rxd6 {[%clk 0:00:40]} 40...
Rxd6 {[%clk 0:00:44.2]} 41. c7 {[%clk 0:00:41.5]} 41... Rd1+ {[%clk 0:00:43.3]}
42. Kh2 {[%clk 0:00:42.4]} 42... Rc1 {[%clk 0:00:39.4]} 43. Re8+ {[%clk
0:00:43.4]} 43... Kh7 {[%clk 0:00:40.9]} 44. c8=Q {[%clk 0:00:45.3]} 44... Rxc8
{[%clk 0:00:40.8]} 45. Rxc8 {[%clk 0:00:47.2]} 45... b5 {[%clk 0:00:41.3]} 46.
Ra8 {[%clk 0:00:48.4]} 46... b4 {[%clk 0:00:40.7]} 47. Ra4 {[%clk 0:00:49.6]}
47... a2 {[%clk 0:00:38.5]} 48. Rxa2 {[%clk 0:00:50.1]} 1-0

[Event "*** Titled Tuesday 3|2 Blitz"]
[Site "Chess.com"]
[Date "2017.03.07"]
[Round "2"]
[White "manubibi"]
[Black "alekroth64"]
[Result "1-0"]
[WhiteElo "2409"]
[BlackElo "2250"]
[TimeControl "180+2"]
[EndTime "13:21:58 PST"]
[Termination "manubibi won by resignation"]

1. e4 {[%clk 0:03:02]} 1... e5 {[%clk 0:02:59.6]} 2. Nf3 {[%clk 0:03:02.4]} 2...
Nc6 {[%clk 0:03:01.1]} 3. Bb5 {[%clk 0:03:01.5]} 3... a6 {[%clk 0:03:02.2]} 4.
Ba4 {[%clk 0:03:02.6]} 4... Nf6 {[%clk 0:03:03.6]} 5. O-O {[%clk 0:03:01]} 5...
Be7 {[%clk 0:03:05]} 6. Re1 {[%clk 0:03:01.1]} 6... b5 {[%clk 0:03:05.8]} 7. Bb3
{[%clk 0:03:02.4]} 7... d6 {[%clk 0:03:07.2]} 8. c3 {[%clk 0:03:03.5]} 8... O-O
{[%clk 0:03:07.6]} 9. h3 {[%clk 0:03:03.8]} 9... Na5 {[%clk 0:03:08.4]} 10. Bc2
{[%clk 0:03:04.5]} 10... c5 {[%clk 0:03:09.9]} 11. d4 {[%clk 0:03:06.1]} 11...
Qc7 {[%clk 0:03:10.4]} 12. Nbd2 {[%clk 0:03:06.6]} 12... cxd4 {[%clk 0:03:10.8]}
13. cxd4 {[%clk 0:03:07.5]} 13... Nc6 {[%clk 0:03:12.2]} 14. Nb3 {[%clk
0:03:08.7]} 14... a5 {[%clk 0:03:13]} 15. Be3 {[%clk 0:03:09.7]} 15... a4 {[%clk
0:03:13.7]} 16. Nbd2 {[%clk 0:03:10.7]} 16... Be6 {[%clk 0:03:12.5]} 17. d5
{[%clk 0:03:05.5]} 17... Nb4 {[%clk 0:03:12.2]} 18. Bb1 {[%clk 0:02:52.1]} 18...
Bd7 {[%clk 0:03:07.3]} 19. a3 {[%clk 0:02:50.7]} 19... Na6 {[%clk 0:03:06.4]}
20. Bd3 {[%clk 0:02:31.8]} 20... b4 {[%clk 0:02:56.6]} 21. Rc1 {[%clk 0:02:28]}
21... Qb7 {[%clk 0:02:50.8]} 22. Nc4 {[%clk 0:02:27.8]} 22... Bb5 {[%clk
0:01:55.7]} 23. Na5 {[%clk 0:02:24.6]} 23... Qd7 {[%clk 0:01:55.1]} 24. Nc6
{[%clk 0:02:23.2]} 24... Bxd3 {[%clk 0:01:53.3]} 25. Qxd3 {[%clk 0:02:22]} 25...
bxa3 {[%clk 0:01:40.8]} 26. bxa3 {[%clk 0:01:56.3]} 26... Nc7 {[%clk 0:01:38.4]}
27. Rc4 {[%clk 0:01:51.5]} 27... Rfe8 {[%clk 0:01:06.2]} 28. Rb1 {[%clk
0:01:51.9]} 28... Bf8 {[%clk 0:00:50.7]} 29. Rb7 {[%clk 0:01:51.9]} 29... Qc8
{[%clk 0:00:48.5]} 30. Qb1 {[%clk 0:01:40.1]} 30... Ncxd5 {[%clk 0:00:17.3]} 31.
exd5 {[%clk 0:01:36.6]} 31... Nxd5 {[%clk 0:00:15.5]} 32. Ne7+ {[%clk
0:01:31.9]} 32... Nxe7 {[%clk 0:00:15.6]} 33. Rxc8 {[%clk 0:01:32.9]} 33...
Rexc8 {[%clk 0:00:14.2]} 34. Ng5 {[%clk 0:01:32.3]} 34... g6 {[%clk 0:00:14]}
35. Qa2 {[%clk 0:01:23.6]} 35... d5 {[%clk 0:00:14.7]} 36. Nxf7 {[%clk
0:01:12.3]} 36... Kxf7 {[%clk 0:00:13.6]} 37. Qxd5+ {[%clk 0:01:12.9]} 37... Ke8
{[%clk 0:00:13.7]} 38. Qxe5 {[%clk 0:01:08.1]} 38... Rd8 {[%clk 0:00:12.9]} 39.
Bg5 {[%clk 0:00:50.8]} 39... Rd7 {[%clk 0:00:06.2]} 40. Rxd7 {[%clk 0:00:51.2]}
40... Kxd7 {[%clk 0:00:06.2]} 41. Bxe7 {[%clk 0:00:52.8]} 1-0

[Event "*** Titled Tuesday 3|2 Blitz"]
[Site "Chess.com"]
[Date "2017.03.07"]
[Round "2"]
[White "underdogchss"]
[Black "1e41-0"]
[Result "0-1"]
[WhiteElo "2433"]
[BlackElo "2317"]
[TimeControl "180+2"]
[EndTime "13:21:59 PST"]
[Termination "1e41-0 won by resignation"]

1. d4 {[%clk 0:03:02]} 1... d5 {[%clk 0:03:00.9]} 2. Nf3 {[%clk 0:03:02.6]} 2...
Nf6 {[%clk 0:03:01.6]} 3. c4 {[%clk 0:03:03.7]} 3... c6 {[%clk 0:03:03]} 4. Nc3
{[%clk 0:03:04.7]} 4... e6 {[%clk 0:03:03.7]} 5. Bg5 {[%clk 0:03:04.9]} 5... h6
{[%clk 0:03:04.8]} 6. Bxf6 {[%clk 0:03:05.6]} 6... Qxf6 {[%clk 0:03:06.7]} 7. e3
{[%clk 0:03:07.3]} 7... Nd7 {[%clk 0:03:07.8]} 8. Qc2 {[%clk 0:03:08.3]} 8... g6
{[%clk 0:03:08.9]} 9. cxd5 {[%clk 0:03:05]} 9... exd5 {[%clk 0:03:09.1]} 10. Bd3
{[%clk 0:03:05.3]} 10... Bg7 {[%clk 0:03:10.3]} 11. O-O {[%clk 0:03:05.5]} 11...
O-O {[%clk 0:03:11.6]} 12. b4 {[%clk 0:03:04.9]} 12... Re8 {[%clk 0:03:07.3]}
13. Rab1 {[%clk 0:03:03.5]} 13... Nf8 {[%clk 0:03:07.7]} 14. Ne5 {[%clk
0:03:00.5]} 14... Qe7 {[%clk 0:03:04.4]} 15. f4 {[%clk 0:02:50.8]} 15... Nd7
{[%clk 0:03:01.1]} 16. Kh1 {[%clk 0:02:18.2]} 16... Qd6 {[%clk 0:02:03.3]} 17.
Qf2 {[%clk 0:02:11.3]} 17... b6 {[%clk 0:02:00.8]} 18. a4 {[%clk 0:01:56]} 18...
Bb7 {[%clk 0:02:00.5]} 19. Qg3 {[%clk 0:01:54.1]} 19... Rab8 {[%clk 0:01:52.3]}
20. a5 {[%clk 0:01:30.8]} 20... c5 {[%clk 0:01:45.1]} 21. Nb5 {[%clk 0:01:29.8]}
21... Qe7 {[%clk 0:01:45.1]} 22. a6 {[%clk 0:01:03.9]} 22... Ba8 {[%clk
0:01:06.2]} 23. Nxf7 {[%clk 0:00:49.7]} 23... Qxf7 {[%clk 0:00:52.9]} 24. Bxg6
{[%clk 0:00:47.5]} 24... Qe7 {[%clk 0:00:50.4]} 25. Nc7 {[%clk 0:00:40.6]} 25...
Rf8 {[%clk 0:00:30.6]} 26. f5 {[%clk 0:00:38.7]} 26... Nf6 {[%clk 0:00:29.2]}
27. Ne6 {[%clk 0:00:38.7]} 27... Ne4 {[%clk 0:00:29.5]} 28. Qg4 {[%clk
0:00:31.2]} 28... Rf6 {[%clk 0:00:28]} 29. Rbe1 {[%clk 0:00:24.2]} 29... c4
{[%clk 0:00:26.4]} 30. h3 {[%clk 0:00:22.3]} 30... Bc6 {[%clk 0:00:26.8]} 31.
Bh5 {[%clk 0:00:22.4]} 31... Bd7 {[%clk 0:00:23.8]} 32. Rf4 {[%clk 0:00:20]}
32... Bxe6 {[%clk 0:00:17.9]} 33. fxe6 {[%clk 0:00:21.1]} 33... Rxf4 {[%clk
0:00:19.1]} 34. exf4 {[%clk 0:00:21.7]} 34... Nf2+ {[%clk 0:00:19.8]} 35. Kg1
{[%clk 0:00:21.5]} 35... Nxg4 {[%clk 0:00:21.7]} 36. hxg4 {[%clk 0:00:22.6]}
36... Rf8 {[%clk 0:00:23.4]} 37. f5 {[%clk 0:00:23.4]} 37... c3 {[%clk
0:00:24.1]} 38. Re2 {[%clk 0:00:23.8]} 38... Bxd4+ {[%clk 0:00:25.3]} 39. Kf1
{[%clk 0:00:23.7]} 39... Rc8 {[%clk 0:00:24.3]} 40. Bf7+ {[%clk 0:00:24.4]}
40... Kg7 {[%clk 0:00:24.9]} 41. g5 {[%clk 0:00:24.7]} 0-1

[Event "*** Titled Tuesday 3|2 Blitz"]
[Site "Chess.com"]
[Date "2017.03.07"]
[Round "2"]
[White "popov_m"]
[Black "Vamostodorecto"]
[Result "1-0"]
[WhiteElo "2389"]
[BlackElo "2385"]
[TimeControl "180+2"]
[EndTime "13:22:09 PST"]
[Termination "popov_m won by resignation"]

1. d4 {[%clk 0:03:02]} 1... d5 {[%clk 0:02:59.6]} 2. Bf4 {[%clk 0:03:03.1]} 2...
Nc6 {[%clk 0:03:00.3]} 3. e3 {[%clk 0:02:57.9]} 3... Nf6 {[%clk 0:03:00.8]} 4.
Nf3 {[%clk 0:02:57.8]} 4... Bg4 {[%clk 0:03:01.7]} 5. Be2 {[%clk 0:02:55]} 5...
e6 {[%clk 0:03:02.5]} 6. Nbd2 {[%clk 0:02:54]} 6... Bd6 {[%clk 0:02:59.6]} 7.
Bg3 {[%clk 0:02:55.2]} 7... O-O {[%clk 0:02:56.6]} 8. c3 {[%clk 0:02:54.1]} 8...
Ne7 {[%clk 0:02:45.4]} 9. Ne5 {[%clk 0:02:51.8]} 9... Bxe2 {[%clk 0:02:43.1]}
10. Qxe2 {[%clk 0:02:53.7]} 10... c5 {[%clk 0:02:37.4]} 11. O-O {[%clk
0:02:51.2]} 11... Rc8 {[%clk 0:02:35.1]} 12. h3 {[%clk 0:02:41.5]} 12... Ng6
{[%clk 0:02:18]} 13. Nb3 {[%clk 0:02:28.5]} 13... c4 {[%clk 0:02:15.2]} 14. Nd2
{[%clk 0:02:29]} 14... Bxe5 {[%clk 0:02:13.6]} 15. dxe5 {[%clk 0:02:28.8]} 15...
Nd7 {[%clk 0:02:13.8]} 16. f4 {[%clk 0:02:29.9]} 16... Nc5 {[%clk 0:02:00.6]}
17. Nf3 {[%clk 0:02:29.2]} 17... Ne4 {[%clk 0:01:55.1]} 18. Bh2 {[%clk
0:02:28.8]} 18... Ne7 {[%clk 0:01:49.4]} 19. g4 {[%clk 0:02:24.5]} 19... b5
{[%clk 0:01:49.4]} 20. Nd4 {[%clk 0:02:19.7]} 20... Qb6 {[%clk 0:01:45.9]} 21.
f5 {[%clk 0:02:20.3]} 21... exf5 {[%clk 0:01:04.9]} 22. gxf5 {[%clk 0:02:22.2]}
22... Qh6 {[%clk 0:00:55.8]} 23. Qg2 {[%clk 0:01:44.6]} 23... Qxe3+ {[%clk
0:00:42.2]} 24. Kh1 {[%clk 0:01:46.2]} 24... Qg5 {[%clk 0:00:39]} 25. Qxg5
{[%clk 0:01:15.2]} 25... Nxg5 {[%clk 0:00:40.9]} 26. f6 {[%clk 0:01:16.7]} 26...
gxf6 {[%clk 0:00:24.5]} 27. h4 {[%clk 0:01:06.7]} 27... Ne4 {[%clk 0:00:23.9]}
28. exf6 {[%clk 0:01:06.7]} 28... Ng6 {[%clk 0:00:25.1]} 29. h5 {[%clk 0:01:08]}
29... Nh4 {[%clk 0:00:21.7]} 30. Rf4 {[%clk 0:01:07.4]} 30... Kh8 {[%clk
0:00:18.1]} 31. Rxh4 {[%clk 0:01:07.5]} 31... b4 {[%clk 0:00:19]} 32. cxb4
{[%clk 0:01:01.7]} 32... Rg8 {[%clk 0:00:20.4]} 33. Rf1 {[%clk 0:00:55.7]} 33...
c3 {[%clk 0:00:18.7]} 34. bxc3 {[%clk 0:00:55.3]} 34... Rxc3 {[%clk 0:00:20.6]}
35. Bf4 {[%clk 0:00:52]} 35... Rd3 {[%clk 0:00:17.2]} 36. Nf5 {[%clk 0:00:49.8]}
36... Ra3 {[%clk 0:00:12.9]} 37. Nh6 {[%clk 0:00:39.7]} 37... Ng3+ {[%clk
0:00:12.3]} 38. Bxg3 {[%clk 0:00:36.8]} 38... Rgxg3 {[%clk 0:00:14.2]} 39. Re1
{[%clk 0:00:31.9]} 39... Rae3 {[%clk 0:00:10.5]} 40. Rxe3 {[%clk 0:00:33.2]}
40... Rxe3 {[%clk 0:00:12.1]} 41. Rg4 {[%clk 0:00:34.9]} 41... Re1+ {[%clk
0:00:11.2]} 42. Kg2 {[%clk 0:00:35.9]} 1-0